bitfinex/quotes_ETHUSD_20260121
["timestamp","ask_amount","ask_price","bid_price","bid_amount"]
[1768961923938,12.20457995,2971.0,2970.5,12.67502252]
[1768961924146,0.554,2971.0,2970.5,12.67502252]
[1768961925109,10.83838329,2971.0,2970.5,12.67502252]
[1768961925315,12.25889101,2971.0,2970.5,13.23002252]
[1768961926537,12.25889101,2971.0,2970.5,1.667]
[1768961928540,12.25889101,2971.0,2970.5,2.222]
[1768961928842,12.25889101,2971.0,2970.5,13.75634244]
[1768961931441,12.25889101,2971.0,2970.5,14.31134244]
[1768961932139,12.25889101,2971.0,2970.5,2.777]
[1768961932458,11.45727442,2970.8,2969.9,12.08934245]
[1768961933413,3.36610779,2970.8,2969.9,12.08934245]
[1768961933616,11.45727442,2970.7,2969.9,12.08934245]
[1768961933822,11.45727442,2970.5,2969.9,12.64434245]
[1768961934029,12.65840186,2970.5,2969.9,12.64434245]
[1768961934223,11.45727442,2970.5,2969.9,12.64434245]
[1768961936350,11.45727442,2970.5,2969.9,13.19934245]
[1768961936750,11.45727442,2970.3,2969.9,1.66500001]
[1768961936951,0.554,2970.4,2969.6,0.557]
[1768961936952,11.45727442,2970.1,2969.6,12.09134244]
[1768961938848,11.45727442,2970.1,2969.6,12.64634244]
[1768961939528,12.01127442,2970.3,2969.6,12.64634244]
[1768961939730,0.554,2970.3,2969.6,12.64634244]
[1768961940156,12.01127442,2970.3,2969.6,12.64634244]
[1768961940325,11.45727442,2970.7,2969.6,12.64634244]
[1768961940525,11.45727442,2970.5,2969.6,12.64634244]
[1768961940753,11.45727442,2971.0,2970.1,11.53434244]
[1768961940961,11.45727442,2970.9,2970.1,11.20233771]
[1768961941255,0.554,2970.8,2970.1,11.75733771]
[1768961942267,12.01127442,2970.8,2970.1,11.75733771]
[1768961942622,12.01127442,2970.8,2970.1,0.555]
[1768961942845,11.45727442,2970.6,2970.1,0.555]
[1768961943951,11.45727442,2970.6,2970.1,12.64434244]
[1768961944253,2.09173348,2970.7,2970.1,12.64434244]
[1768961944254,0.554,2970.7,2970.1,12.64434244]
[1768961945523,0.001,2971.1,2970.1,12.64434244]
[1768961945726,12.01127442,2971.0,2970.1,12.64434244]
[1768961945941,12.01127442,2971.0,2970.1,13.79794298]
[1768961946370,12.01127442,2971.0,2970.1,14.35294298]
[1768961946769,11.45727442,2971.0,2970.1,14.35294298]
[1768961946979,0.001,2971.1,2970.4,11.53434244]
[1768961947139,0.001,2970.8,2970.4,11.53434244]
[1768961947332,0.001,2970.8,2970.4,13.17844888]
[1768961948850,0.001,2971.1,2970.5,11.53434244]
[1768961949063,12.01127442,2971.6,2970.7,11.53434244]
[1768961949861,0.554,2971.6,2970.7,11.53434244]
[1768961950080,11.45727442,2971.7,2970.7,11.53434244]
[1768961950227,13.15700186,2971.7,2970.7,12.14860838]
[1768961950431,12.60300186,2971.7,2971.0,11.53434244]
[1768961951432,12.60300186,2971.7,2971.0,12.08934244]
[1768961953946,12.60300186,2971.7,2971.0,12.64434244]
[1768961955862,10.70672289,2971.6,2971.0,1.11]
[1768961956060,12.02242308,2971.6,2971.0,1.11]
[1768961956251,12.02242308,2971.6,2971.0,1.665]
[1768961956457,12.02242308,2971.6,2971.0,13.32930499]
[1768961957075,12.02242308,2971.6,2971.0,1.665]
[1768961957244,10.70672289,2971.4,2971.0,1.665]
[1768961957939,10.70672289,2971.2,2970.4,12.21930499]
[1768961958752,10.70672289,2971.2,2970.4,12.77430499]
[1768961959787,3.36565626,2971.2,2970.4,12.77430499]
[1768961960074,10.70672289,2971.1,2970.4,1.11]
[1768961960240,10.70672289,2970.9,2970.4,1.11]
[1768961961255,10.70672289,2970.9,2970.4,13.32930499]
[1768961961565,10.70672289,2971.5,2970.6,4.90472201]
[1768961961772,10.70672289,2971.7,2971.0,11.66430499]
[1768961961966,11.26072289,2971.7,2971.0,11.66430499]
[1768961964250,11.26072289,2971.7,2971.0,12.21930499]
[1768961966775,11.26072289,2971.7,2971.0,12.77430499]
[1768961968844,10.70672289,2971.7,2971.0,12.77430499]
[1768961969177,11.26072289,2971.8,2971.1,11.66430499]
[1768961971571,11.26072289,2971.8,2971.1,12.21930499]
[1768961972172,10.70772289,2971.6,2971.1,12.21930499]
[1768961973982,10.70772289,2971.6,2971.1,12.77430499]
[1768961976357,10.70772289,2971.6,2971.1,13.32930499]
[1768961978990,10.70772289,2971.6,2971.1,13.88430499]
[1768961979486,0.001,2971.6,2971.1,13.88430499]
[1768961981390,0.001,2971.6,2971.1,14.43930499]
[1768961983665,0.001,2971.6,2971.2,11.66430499]
[1768961985579,0.001,2971.4,2971.2,11.66430499]
[1768961986993,0.001,2971.4,2971.2,12.21930499]
[1768961989466,0.001,2971.4,2971.2,12.77430499]
[1768961990488,11.4733342,2972.1,2971.3,13.04930959]
[1768961990690,12.0273342,2972.1,2971.4,11.43887909]
[1768961992284,12.0273342,2972.1,2971.4,11.99387909]
[1768961992805,13.10900928,2972.1,2971.4,11.99387909]
[1768961992991,13.10900928,2972.1,2971.4,0.555]
[1768961993194,11.4713342,2972.0,2971.4,0.555]
[1768961994775,11.4713342,2972.0,2971.4,1.11]
[1768961997272,11.4713342,2972.0,2971.4,1.665]
[1768961997575,11.4713342,2971.8,2971.4,1.667]
[1768961998011,11.4723342,2971.8,2971.4,1.667]
[1768961998479,0.555,2971.8,2971.4,13.10587909]
[1768962000008,0.001,2971.8,2971.4,13.10587909]
[1768962000212,0.001,2971.8,2971.5,11.43887909]
[1768962001121,0.001,2971.8,2971.4,4.13333664]
[1768962001122,0.002,2972.3,2971.9,11.43887909]
[1768962001293,12.0253342,2972.9,2972.3,11.43887909]
[1768962002020,11.4713342,2973.4,2972.5,11.43887909]
[1768962002319,12.0253342,2973.3,2972.5,11.43887909]
[1768962002620,11.4713342,2973.3,2972.5,11.99387909]
[1768962002822,0.002,2973.7,2973.2,11.43887909]
[1768962004113,11.4733342,2973.7,2973.2,11.43887909]
[1768962005116,11.4733342,2973.7,2973.2,11.99387909]
[1768962006123,0.002,2973.7,2973.2,11.99387909]
[1768962007494,0.002,2973.7,2973.2,12.54887909]
[1768962007815,11.4733342,2973.7,2973.2,12.54887909]
[1768962008800,0.002,2973.7,2973.2,12.54887909]
[1768962009898,0.002,2973.7,2973.4,0.001]
[1768962010093,0.002,2973.7,2973.5,8.07196516]
[1768962010282,0.002,2973.7,2973.5,7.77175359]
[1768962012228,0.002,2973.7,2973.5,8.32675359]
[1768962013618,0.002,2974.0,2973.6,11.43887909]
[1768962014234,0.002,2974.0,2973.6,12.93951537]
[1768962014640,0.002,2974.0,2973.6,13.49451537]
[1768962016303,0.002,2974.0,2973.6,11.99387909]
[1768962017001,0.002,2974.0,2973.6,12.54887909]
[1768962017932,11.4731473,2974.0,2973.6,1.11]
[1768962018125,11.4731473,2974.0,2973.6,0.33556076]
[1768962018325,11.4711473,2973.8,2973.5,0.555]
[1768962019028,1.14751473,2973.9,2973.5,11.88222994]
[1768962019234,0.002,2974.0,2973.5,11.88222994]
[1768962019434,0.002,2974.0,2973.5,12.43722994]
[1768962021831,11.4731473,2974.0,2973.5,1.665]
[1768962022343,12.0271473,2974.0,2973.5,0.89035239]
[1768962022540,12.0271473,2974.0,2973.5,0.50302561]
[1768962022742,11.4711473,2973.8,2973.5,0.50302561]
[1768962023040,11.4731473,2973.8,2973.5,0.50302561]
[1768962024241,11.4731473,2973.8,2973.5,0.55500001]
[1768962024441,0.002,2974.1,2973.7,11.32722994]
[1768962026716,0.002,2974.1,2973.7,11.88222994]
[1768962026955,0.002,2974.4,2973.7,0.555]
[1768962027262,1.20650758,2974.4,2973.8,11.32722994]
[1768962027462,12.67765488,2974.4,2973.8,11.32722994]
[1768962029064,12.67765488,2974.4,2973.8,11.88222994]
[1768962031446,12.67765488,2974.4,2973.8,12.43722994]
[1768962033959,12.67765488,2974.4,2973.8,12.99222994]
[1768962034966,0.002,2974.2,2973.8,12.99222994]
[1768962036263,0.002,2974.2,2973.8,13.54722994]
[1768962036835,11.4731473,2974.2,2973.8,2.22]
[1768962037035,12.54111279,2974.2,2973.8,1.4120988]
[1768962037238,12.54111279,2974.2,2973.7,0.45066489]
[1768962038176,12.54111279,2974.2,2973.7,0.40066489]
[1768962038343,11.4711473,2974.0,2973.5,0.16766923]
[1768962038758,11.4711473,2974.0,2973.5,0.72266923]
[1768962040258,11.4711473,2973.9,2973.5,0.72266923]
[1768962040573,11.4711473,2973.9,2973.4,0.001]
[1768962041166,11.4711473,2973.9,2973.4,0.556]
[1768962041387,11.4711473,2973.7,2973.4,1e-08]
[1768962041555,11.4711473,2973.7,2973.2,1.665]
[1768962043273,12.0251473,2973.7,2973.2,1.665]
[1768962043443,12.0251473,2973.7,2973.2,2.22]
[1768962046280,12.0251473,2973.7,2973.2,2.775]
[1768962046450,13.71226209,2973.7,2973.4,0.001]
[1768962046652,13.71226209,2973.7,2973.2,2.775]
[1768962048979,13.71226209,2973.7,2973.2,3.33]
[1768962051662,13.71226209,2973.7,2973.2,3.885]
[1768962053482,13.71226209,2973.7,2973.3,11.05586015]
[1768962053782,12.0251473,2973.7,2973.3,11.05586015]
[1768962053974,12.0251473,2973.7,2973.3,0.555]
[1768962055084,12.0251473,2973.7,2973.3,1e-08]
[1768962055888,11.17090823,2973.6,2972.7,11.60986015]
[1768962056056,11.17090823,2973.4,2972.7,11.60986015]
[1768962056458,11.17090823,2973.0,2972.7,0.555]
[1768962056654,11.17090823,2973.2,2972.7,11.61086015]
[1768962056859,0.554,2973.3,2972.7,11.61086015]
[1768962057075,11.72490823,2973.3,2972.7,11.61086015]
[1768962057358,12.89739905,2973.3,2972.7,0.555]
[1768962058866,12.89739905,2973.3,2972.7,1.11]
[1768962059290,12.89739905,2973.3,2972.9,0.001]
[1768962061192,12.89739905,2973.3,2972.9,0.556]
[1768962062392,12.89739905,2973.3,2972.9,1e-08]
[1768962062576,11.17090823,2973.1,2972.7,12.16586015]
[1768962062777,11.17090823,2973.1,2972.7,1.11]
[1768962063485,11.17090823,2973.1,2972.7,0.55500001]
[1768962063693,11.17090823,2973.1,2972.7,1e-08]
[1768962065482,12.79696645,2973.2,2972.7,11.05586016]
[1768962065667,11.17090823,2973.2,2972.7,11.05586016]
[1768962066075,11.17090823,2973.2,2972.7,11.61086016]
[1768962066982,11.17090823,2973.2,2972.7,0.55500001]
[1768962067368,11.17090823,2973.1,2972.7,1e-08]
[1768962067599,11.17090823,2973.1,2972.5,0.555]
[1768962067801,11.17090823,2972.9,2972.5,0.555]
[1768962067988,11.72490823,2972.9,2972.5,0.555]
[1768962068383,11.72490823,2972.9,2972.5,1.11]
[1768962070301,11.72490823,2972.9,2972.5,1e-08]
[1768962071498,5.44873012,2972.9,2972.5,1e-08]
[1768962071703,12.24643264,2972.8,2972.7,0.001]
[1768962071905,12.24643264,2972.8,2972.5,1e-08]
[1768962071906,11.17090823,2972.8,2972.5,1e-08]
[1768962075722,11.17090823,2972.8,2972.5,0.55500001]
[1768962078180,0.556,2972.9,2972.5,13.5006007]
[1768962078812,12.46780475,2972.9,2972.5,13.5006007]
[1768962079199,12.46780475,2972.9,2972.5,1.11000001]
[1768962079399,13.71478523,2972.9,2972.5,1e-08]
[1768962081083,13.71478523,2972.9,2972.5,0.55500001]
[1768962082318,13.71478523,2972.9,2972.5,1e-08]
[1768962082708,11.91180475,2972.8,2972.1,12.39060069]
[1768962083410,11.91180475,2972.8,2972.1,12.94560069]
[1768962083598,11.91180475,2972.6,2972.1,12.94560069]
[1768962084790,11.91180475,2972.6,2972.3,0.001]
[1768962085890,11.91180475,2972.6,2972.3,0.556]
[1768962086100,11.91180475,2972.6,2972.3,1e-08]
[1768962086423,11.91180475,2972.5,2972.1,0.555]
[1768962086622,13.32271777,2972.5,2971.9,12.39060069]
[1768962086802,13.87671777,2972.5,2971.6,12.39060069]
[1768962087895,11.91180475,2972.4,2971.6,12.39060069]
[1768962089346,0.556,2972.9,2971.9,12.39060069]
[1768962089639,0.556,2972.9,2972.1,12.39060069]
[1768962089814,0.556,2972.9,2972.3,12.39060069]
[1768962091731,0.002,2972.9,2972.3,12.39060069]
[1768962091908,0.002,2972.9,2972.3,12.94560069]
[1768962092111,0.002,2972.9,2972.5,12.39060069]
[1768962094313,0.002,2972.9,2972.5,12.94560069]
[1768962096417,0.002,2972.7,2972.5,12.94560069]
[1768962096612,0.002,2972.9,2972.6,12.39060069]
[1768962098148,0.002,2973.5,2972.7,12.39060069]
[1768962098437,0.002,2973.5,2972.9,12.39060069]
[1768962099323,0.002,2973.5,2972.9,12.94560069]
[1768962101932,0.002,2973.5,2972.9,13.50060069]
[1768962102747,12.46780475,2973.5,2972.9,1.11]
[1768962102947,11.91180475,2973.3,2972.9,1.11]
[1768962104452,11.91180475,2973.3,2972.9,1.665]
[1768962104734,11.91180475,2973.3,2972.6,12.39060069]
[1768962107250,11.91180475,2973.3,2972.6,12.94560069]
[1768962107953,13.4192836,2973.4,2972.6,0.555]
[1768962108147,12.17250312,2973.2,2972.6,0.555]
[1768962108457,12.72650312,2973.2,2972.5,1.11]
[1768962108626,12.17250312,2973.0,2972.3,12.83392832]
[1768962109030,12.17250312,2973.0,2972.3,0.555]
[1768962109246,12.17250312,2972.8,2972.3,0.555]
[1768962109447,1.5536222,2972.7,2972.3,0.555]
[1768962109753,12.72650312,2972.8,2972.3,13.38892832]
[1768962111732,16.09036882,2972.8,2972.3,13.38892832]
[1768962111935,12.17250312,2972.7,2972.3,0.55500001]
[1768962112254,12.17250312,2972.7,2972.1,12.27892832]
[1768962113312,0.554,2972.8,2972.1,12.27892832]
[1768962113513,0.002,2973.1,2972.1,13.56222115]
[1768962113514,12.17250312,2972.9,2972.1,13.56222115]
[1768962113718,0.554,2972.9,2972.1,13.56222115]
[1768962114551,12.17250312,2973.0,2972.1,14.11722115]
[1768962117274,12.17250312,2973.0,2972.1,14.67222115]
[1768962119677,12.17250312,2973.0,2972.1,15.22722115]
[1768962120347,0.002,2972.8,2972.4,12.27892832]
[1768962121138,12.17450312,2972.8,2972.4,12.27892832]
[1768962121537,0.002,2972.8,2972.4,12.27892832]
[1768962121738,12.17450312,2972.8,2972.3,12.27992832]
[1768962122062,12.17450312,2972.8,2972.3,12.83492832]
[1768962122227,13.72831435,2972.8,2972.3,12.83492832]
[1768962122651,12.17250312,2972.7,2972.1,1.665]
[1768962122855,12.17250312,2972.6,2971.6,0.555]
[1768962123056,12.17250312,2972.6,2971.6,12.83392832]
[1768962123261,5.44895954,2972.7,2971.6,0.555]
[1768962123262,12.17250312,2972.4,2971.6,0.555]
[1768962123463,12.17250312,2972.2,2971.6,0.555]
[1768962124467,12.17250312,2972.2,2971.7,12.27892832]
[1768962126989,12.17250312,2972.2,2971.7,0.555]
[1768962127338,0.554,2972.3,2971.7,12.83392832]
[1768962127588,12.72650312,2972.3,2971.7,12.83392832]
[1768962127873,1.27265031,2972.2,2971.7,12.83392832]
[1768962128279,13.44515343,2972.2,2971.7,12.83392832]
[1768962129240,13.44515343,2972.2,2971.7,13.38892832]
[1768962129444,1.27265031,2972.2,2971.7,13.38892832]
[1768962130574,13.44515343,2972.2,2971.7,13.38892832]
[1768962130751,13.57241846,2972.1,2971.7,13.38892832]
[1768962130966,1.39991534,2972.1,2971.7,13.38892832]
[1768962131302,12.72650312,2972.3,2971.7,1.06]
[1768962131683,12.72650312,2972.3,2971.7,13.89392832]
[1768962133563,12.72650312,2972.3,2971.9,0.002]
[1768962133765,0.001,2972.1,2971.9,0.002]
[1768962134009,0.001,2972.1,2971.9,0.557]
[1768962134162,0.001,2972.1,2971.8,12.27892832]
[1768962136379,0.001,2972.1,2971.8,12.83392832]
[1768962138869,0.001,2972.1,2971.8,13.38892832]
[1768962140885,11.87348713,2972.1,2971.8,1.11]
[1768962141073,13.45267748,2972.1,2971.8,1e-08]
[1768962141274,13.45267748,2972.1,2971.7,1.60898414]
[1768962141489,13.45267748,2972.1,2971.7,1e-08]
[1768962141687,11.87248713,2972.0,2971.6,1.06200001]
[1768962141887,11.87248713,2972.0,2971.6,1e-08]
[1768962142069,13.21775488,2972.0,2971.6,1e-08]
[1768962143201,0.555,2972.1,2971.6,11.94986865]
[1768962143499,12.42748713,2972.1,2971.6,11.94986865]
[1768962143808,11.87248713,2972.6,2971.7,11.94986864]
[1768962143991,11.87248713,2972.6,2971.7,12.50386864]
[1768962144189,11.87248713,2972.6,2971.9,11.94986864]
[1768962146206,11.87248713,2972.6,2971.9,12.50486864]
[1768962148380,0.001,2972.4,2971.9,12.50486864]
[1768962148579,0.001,2972.4,2971.9,13.05986864]
[1768962150092,11.87248713,2972.2,2971.6,0.55500001]
[1768962150384,0.001,2972.4,2971.7,11.94986864]
[1768962151012,11.87348713,2972.4,2971.7,12.50486864]
[1768962151619,11.87348713,2972.4,2971.7,13.05886864]
[1768962152321,0.001,2972.4,2971.7,13.05886864]
[1768962153496,0.001,2972.4,2971.7,13.61386864]
[1768962153700,0.001,2972.4,2971.9,11.94986864]
[1768962154796,11.87348713,2972.4,2971.9,11.94986864]
[1768962155002,11.87348713,2972.4,2971.7,13.61386864]
[1768962155207,11.87348713,2972.4,2971.7,13.05986864]
[1768962156123,11.87348713,2972.4,2971.7,13.61486864]
[1768962156418,13.11623584,2972.4,2971.7,1.665]
[1768962158126,11.87248713,2972.3,2971.7,1e-08]
[1768962158433,15.23722086,2972.1,2971.7,1e-08]
[1768962158635,11.87248713,2972.0,2971.4,2.222]
[1768962159008,11.87248713,2972.0,2971.2,1.11]
[1768962159343,11.87248713,2972.0,2971.2,13.05986864]
[1768962159740,11.87248713,2972.0,2971.9,0.002]
[1768962159928,14.27755866,2972.0,2971.2,13.05986864]
[1768962160329,14.27755866,2972.0,2971.6,0.002]
[1768962160509,14.27755866,2972.0,2971.2,13.05986864]
[1768962161143,11.87248713,2971.9,2971.2,13.05986864]
[1768962161322,11.87248713,2971.9,2971.2,13.61486864]
[1768962161635,11.87248713,2971.7,2971.2,13.61486864]
[1768962161840,11.87248713,2971.7,2971.2,1.665]
[1768962162221,11.87248713,2971.7,2971.2,13.61486864]
[1768962162422,11.87248713,2971.7,2971.2,1.665]
[1768962163936,11.87248713,2971.7,2971.2,2.22]
[1768962164135,13.25791143,2971.6,2971.2,2.22]
[1768962165045,13.25791143,2971.6,2971.1,3.332]
[1768962166021,13.69599033,2971.6,2971.1,16.03462201]
[1768962166227,12.31056603,2971.8,2971.2,12.70262201]
[1768962168826,12.31056603,2971.8,2971.2,13.25762201]
[1768962169662,12.86456603,2971.9,2971.2,13.25762201]
[1768962171254,12.86456603,2971.9,2971.2,13.81262201]
[1768962171965,12.86456603,2971.9,2971.4,12.70462201]
[1768962172159,1.2864566,2971.8,2971.4,12.70462201]
[1768962172943,13.59702263,2971.8,2971.2,13.81262201]
[1768962173844,13.59702263,2971.8,2971.2,14.36762201]
[1768962174367,13.59702263,2971.8,2971.2,1.665]
[1768962174853,13.59702263,2971.8,2971.2,14.36762201]
[1768962175250,13.72566829,2971.7,2971.2,14.36762201]
[1768962176151,13.72566829,2971.7,2971.2,14.92262201]
[1768962178570,13.72566829,2971.7,2971.2,15.47762201]
[1768962178771,12.31056603,2971.7,2971.2,15.47762201]
[1768962180568,12.31056603,2971.7,2971.2,2.775]
[1768962180871,12.31056603,2971.6,2971.2,1e-08]
[1768962181069,14.01531446,2971.0,2970.6,0.002]
[1768962181460,14.01531446,2971.0,2970.6,12.70462201]
[1768962182172,14.01531446,2971.0,2970.6,0.002]
[1768962182752,1.70474843,2971.0,2970.6,0.002]
[1768962182951,1.70474843,2971.0,2970.6,12.70462201]
[1768962183152,1.70474843,2971.0,2970.6,13.25962201]
[1768962183881,1.70474843,2971.0,2970.8,0.002]
[1768962184275,1.70474843,2971.0,2970.7,12.70262201]
[1768962185583,1.70474843,2971.0,2970.7,13.25762201]
[1768962186083,12.31056603,2971.1,2970.7,13.25762201]
[1768962186664,12.86456603,2971.2,2970.7,13.25762201]
[1768962188378,12.86456603,2971.2,2970.7,13.81262201]
[1768962190285,0.555,2971.2,2970.7,13.81262201]
[1768962190855,0.555,2971.2,2970.7,14.36762201]
[1768962191275,12.86556603,2971.2,2970.7,14.36762201]
[1768962191685,12.31056603,2971.1,2970.6,0.557]
[1768962193287,12.31056603,2971.1,2970.6,1.112]
[1768962193858,12.31056603,2971.0,2970.5,0.002]
[1768962194470,12.31056603,2971.0,2970.5,12.70462201]
[1768962196109,12.31056603,2971.0,2970.5,13.25962201]
[1768962196495,12.31056603,2971.0,2970.8,0.002]
[1768962196697,12.31056603,2971.0,2970.5,13.25962201]
[1768962197012,12.26315589,2970.9,2970.5,13.25962201]
[1768962198389,12.26315589,2970.9,2970.5,13.81462201]
[1768962198590,0.001,2970.9,2970.5,13.81462201]
[1768962198786,3.36545938,2971.4,2970.6,10.03111097]
[1768962198787,12.81715589,2971.4,2970.6,10.03111097]
[1768962198991,13.54387148,2971.3,2970.6,10.03111097]
[1768962199186,13.54387148,2971.3,2970.5,1.112]
[1768962200620,13.54387148,2971.3,2970.5,12.8458594]
[1768962201320,13.54387148,2971.3,2970.5,13.4008594]
[1768962201817,12.26215589,2971.2,2970.5,13.4008594]
[1768962201990,12.26215589,2971.0,2970.5,13.4008594]
[1768962202193,12.81715589,2971.0,2970.5,13.4008594]
[1768962202391,0.555,2971.0,2970.5,13.4008594]
[1768962204327,0.555,2971.0,2970.5,13.9558594]
[1768962205023,12.81715589,2971.0,2970.5,13.9558594]
[1768962205521,0.555,2971.0,2970.5,13.9558594]
[1768962205728,12.81715589,2971.0,2970.5,13.9558594]
[1768962206731,12.81715589,2971.0,2970.5,14.5108594]
[1768962208539,0.555,2971.0,2970.5,14.5108594]
[1768962208830,0.555,2971.0,2970.6,11.7338594]
[1768962209031,0.555,2971.0,2970.6,12.2888594]
[1768962211740,0.555,2971.0,2970.6,12.8438594]
[1768962213143,12.81715589,2971.0,2970.6,12.8438594]
[1768962214131,12.81715589,2971.0,2970.6,13.3988594]
[1768962215444,14.09897148,2971.0,2970.6,1.665]
[1768962215649,14.09897148,2971.0,2970.5,2.777]
[1768962215849,14.09897148,2971.0,2970.5,2.222]
[1768962216737,14.09897148,2971.0,2970.5,2.777]
[1768962218361,12.81715589,2971.0,2970.5,14.5108594]
[1768962219074,12.81715589,2971.0,2970.5,15.0658594]
[1768962219765,12.81715589,2971.0,2970.6,11.7338594]
[1768962220964,12.81715589,2971.0,2970.5,3.332]
[1768962221200,12.81715589,2971.0,2970.5,15.0658594]
[1768962221378,0.001,2970.8,2970.5,15.6208594]
[1768962221697,0.001,2970.8,2970.6,11.7338594]
[1768962224014,0.001,2970.8,2970.6,12.2888594]
[1768962226067,0.001,2970.8,2970.6,0.555]
[1768962226271,0.001,2970.8,2970.6,1.11]
[1768962226800,13.51634393,2970.8,2970.3,1e-08]
[1768962226999,12.23613085,2970.6,2970.3,1e-08]
[1768962227307,12.23613085,2970.4,2970.3,1e-08]
[1768962228605,12.23613085,2970.4,2969.8,12.0121862]
[1768962230088,0.555,2970.5,2969.8,12.0121862]
[1768962230089,0.555,2970.3,2969.8,12.0121862]
[1768962231407,0.555,2970.3,2969.8,12.5671862]
[1768962231705,12.23613085,2970.5,2969.8,13.93510482]
[1768962231903,12.79113085,2970.5,2969.8,13.93510482]
[1768962233112,12.79113085,2970.5,2969.8,12.5671862]
[1768962233486,12.23613085,2970.4,2970.0,0.002]
[1768962233701,12.23613085,2970.4,2969.8,1.11]
[1768962234010,12.23613085,2970.4,2969.8,1.112]
[1768962234702,12.23613085,2970.3,2969.8,1.112]
[1768962235006,12.23613085,2970.3,2969.4,6.102]
[1768962235007,13.85190264,2970.3,2969.4,17.5591862]
[1768962235208,12.23613085,2970.2,2969.4,13.6791862]
[1768962235412,12.23613085,2970.0,2969.4,13.6791862]
[1768962235983,12.23613085,2970.0,2969.6,0.555]
[1768962236204,12.23613085,2969.8,2969.4,1.667]
[1768962237713,12.79113085,2969.7,2969.3,0.557]
[1768962238596,12.79113085,2969.7,2969.3,1.112]
[1768962239014,12.79113085,2969.7,2969.2,0.002]
[1768962240111,12.23613085,2969.6,2968.9,12.5671862]
[1768962240313,13.47554533,2969.6,2968.9,12.5671862]
[1768962240683,13.47554533,2969.6,2968.9,0.555]
[1768962241105,13.47554533,2969.6,2968.9,1.11]
[1768962241312,12.23613085,2969.4,2968.9,1.11]
[1768962241628,12.79113085,2969.3,2968.9,1.11]
[1768962241812,12.23613085,2969.1,2968.7,1e-08]
[1768962243519,1.27911309,2969.2,2968.7,12.56718621]
[1768962243699,0.555,2969.2,2968.7,12.56718621]
[1768962243901,8.27648952,2969.9,2968.7,12.56718621]
[1768962244107,12.79113085,2969.8,2968.7,12.56718621]
[1768962244327,12.79113085,2969.8,2968.8,0.03368354]
[1768962244530,12.79113085,2969.8,2968.9,12.0121862]
[1768962244855,14.40695743,2969.8,2968.9,12.0121862]
[1768962245330,17.77424808,2969.8,2968.9,12.0121862]
[1768962245630,12.23613085,2969.7,2968.9,12.0121862]
[1768962245833,0.555,2969.6,2969.1,12.0141862]
[1768962246034,12.79113085,2969.6,2969.1,12.0141862]
[1768962246609,12.23613085,2969.5,2969.1,0.002]
[1768962246808,12.23613085,2969.5,2968.9,0.557]
[1768962247519,12.23613085,2969.4,2968.7,0.55500001]
[1768962248207,12.23613085,2969.4,2968.7,1.11000001]
[1768962248537,12.23613085,2969.4,2968.7,13.12218621]
[1768962248703,7.08017028,2969.6,2968.7,13.12218621]
[1768962248704,0.555,2969.3,2968.7,13.12218621]
[1768962249332,12.23613085,2969.6,2968.7,13.12218621]
[1768962249529,12.23613085,2969.9,2968.8,12.02629961]
[1768962249732,3.36705872,2970.0,2968.8,12.0121862]
[1768962249733,12.79113085,2969.8,2968.8,12.0121862]
[1768962250750,0.555,2969.7,2968.8,12.0121862]
[1768962250935,0.555,2969.7,2968.9,13.87083763]
[1768962250936,12.79113085,2969.7,2968.9,13.87083763]
[1768962252768,12.23613085,2969.3,2968.8,0.555]
[1768962253051,4.90932813,2969.4,2968.7,1e-08]
[1768962253052,12.23613085,2969.1,2968.7,1e-08]
[1768962253348,0.555,2969.2,2968.7,0.55500001]
[1768962253725,2.3250459,2969.2,2968.7,0.55500001]
[1768962254048,0.555,2969.2,2968.7,12.56718621]
[1768962254252,0.555,2969.3,2968.7,12.56718621]
[1768962254548,12.23613085,2969.9,2968.7,12.56718621]
[1768962254751,12.79113085,2969.8,2968.7,12.56718621]
[1768962255053,1.27911309,2969.7,2968.7,14.70740073]
[1768962255351,0.555,2969.6,2968.7,14.70740073]
[1768962255765,0.555,2969.6,2968.8,11.92167289]
[1768962256328,12.23613085,2969.8,2968.8,11.92167289]
[1768962256661,11.7063284,2970.1,2969.0,11.92167289]
[1768962256867,0.555,2969.8,2969.0,13.19343129]
[1768962257734,0.555,2969.9,2969.0,13.19343129]
[1768962257932,0.001,2969.6,2969.0,13.19343129]
[1768962258137,0.001,2969.6,2969.0,13.74843129]
[1768962260972,0.001,2969.6,2969.0,14.30343129]
[1768962261350,0.001,2969.6,2969.0,14.25343129]
[1768962261549,0.001,2969.6,2969.0,12.98167289]
[1768962263355,0.001,2969.6,2969.0,13.53667289]
[1768962265773,0.001,2969.6,2969.0,14.09167289]
[1768962268265,0.001,2969.6,2969.0,14.64667289]
[1768962269393,0.001,2969.4,2969.0,14.64667289]
[1768962269550,0.001,2969.4,2969.2,11.92167289]
[1768962270991,0.001,2969.4,2969.2,12.47667289]
[1768962273476,0.001,2969.4,2969.2,13.03167289]
[1768962276508,0.001,2969.4,2969.2,13.58667289]
[1768962278915,0.001,2969.4,2969.2,14.14167289]
[1768962279417,0.001,2969.4,2969.3,11.92167289]
[1768962281628,0.001,2969.4,2969.3,12.47667289]
[1768962282469,0.001,2970.2,2969.4,11.92167289]
[1768962282743,11.7073284,2970.2,2969.6,11.92167289]
[1768962283510,0.001,2970.2,2969.6,11.92167289]
[1768962284243,0.001,2970.2,2969.6,14.49653248]
[1768962284543,11.7063284,2970.6,2970.1,11.92167289]
[1768962284924,11.7073284,2970.8,2970.1,11.92167289]
[1768962286433,11.7073284,2970.8,2970.1,12.47667289]
[1768962286635,13.27014885,2970.8,2970.1,12.47667289]
[1768962287474,0.001,2970.8,2970.1,13.03167289]
[1768962287973,11.70376437,2970.8,2970.1,13.03167289]
[1768962288128,0.001,2970.8,2970.1,13.03167289]
[1768962288740,0.001,2970.8,2970.1,13.58667289]
[1768962290146,11.70376437,2970.8,2970.1,13.58667289]
[1768962290463,11.70376437,2970.8,2970.3,12.66218147]
[1768962291384,11.70376437,2970.8,2970.3,13.21718147]
[1768962292577,11.70376437,2970.6,2970.3,0.555]
[1768962293071,0.001,2970.6,2970.3,13.21718147]
[1768962293651,0.001,2970.6,2970.3,13.77218147]
[1768962293867,0.001,2970.6,2970.3,15.31589962]